[Event "Late-Titled-Tuesday-Blitz-July-09-2024"]
[Site "Chess.com"]
[Date "2024.07.09"]
[Round "7"]
[White "myburger"]
[Black "Paladin61"]
[Result "0-1"]
[WhiteElo "2547"]
[BlackElo "2736"]
[TimeControl "180+1"]
[EndTime "15:17:00 PDT"]
[Termination "Paladin61 won by checkmate"]

1. d4 {[%clk 0:03:00.9]} 1... Nf6 {[%clk 0:02:54.1]} 2. Nc3 {[%clk 0:02:59]}
2... d5 {[%clk 0:02:53.6]} 3. Bf4 {[%clk 0:02:55]} 3... c5 {[%clk 0:02:52.1]} 4.
e4 {[%clk 0:02:53.4]} 4... Nxe4 {[%clk 0:02:52]} 5. Nxe4 {[%clk 0:02:50.3]} 5...
dxe4 {[%clk 0:02:52.9]} 6. dxc5 {[%clk 0:02:50.4]} 6... Qa5+ {[%clk 0:02:53.2]}
7. Qd2 {[%clk 0:02:42]} 7... Qxc5 {[%clk 0:02:54.1]} 8. O-O-O {[%clk 0:02:39.5]}
8... Nc6 {[%clk 0:02:51.4]} 9. Ne2 {[%clk 0:02:21.4]} 9... g6 {[%clk 0:02:49.3]}
10. Nc3 {[%clk 0:02:05.4]} 10... Bg7 {[%clk 0:02:41.2]} 11. Nxe4 {[%clk
0:01:40.9]} 11... Qb6 {[%clk 0:02:40.7]} 12. c3 {[%clk 0:01:36.7]} 12... Be6
{[%clk 0:02:38.3]} 13. Kb1 {[%clk 0:01:32.4]} 13... Rd8 {[%clk 0:02:35.7]} 14.
Qc2 {[%clk 0:01:30.9]} 14... Rxd1+ {[%clk 0:02:28.1]} 15. Qxd1 {[%clk
0:01:31.8]} 15... O-O {[%clk 0:02:19.8]} 16. Qc2 {[%clk 0:01:21.1]} 16... Qa5
{[%clk 0:02:12.5]} 17. b3 {[%clk 0:01:16.4]} 17... Rc8 {[%clk 0:01:13.3]} 18.
Bd3 {[%clk 0:00:50.5]} 18... Nd4 {[%clk 0:01:05.7]} 19. Qd2 {[%clk 0:00:42.3]}
19... Nb5 {[%clk 0:00:59.8]} 20. Bxb5 {[%clk 0:00:36.1]} 20... Qxb5 {[%clk
0:00:59.5]} 21. Rd1 {[%clk 0:00:33.5]} 21... h5 {[%clk 0:00:20.4]} 22. Qd3
{[%clk 0:00:19.6]} 22... Qc6 {[%clk 0:00:08.2]} 23. Rc1 {[%clk 0:00:16.6]} 23...
a5 {[%clk 0:00:07.1]} 24. f3 {[%clk 0:00:15]} 24... b5 {[%clk 0:00:06.1]} 25.
Be3 {[%clk 0:00:10.2]} 25... a4 {[%clk 0:00:05.3]} 26. b4 {[%clk 0:00:10.4]}
26... Bc4 {[%clk 0:00:04]} 27. Qd2 {[%clk 0:00:10.4]} 27... Bd5 {[%clk
0:00:03.7]} 28. Bd4 {[%clk 0:00:09.9]} 28... Bxe4+ {[%clk 0:00:03.9]} 29. fxe4
{[%clk 0:00:09.8]} 29... Qxe4+ {[%clk 0:00:04.8]} 30. Kb2 {[%clk 0:00:10.4]}
30... Rd8 {[%clk 0:00:04]} 31. Re1 {[%clk 0:00:08.9]} 31... Qb7 {[%clk
0:00:03.6]} 32. Qf4 {[%clk 0:00:08]} 32... Qxg2+ {[%clk 0:00:03.3]} 33. Qf2
{[%clk 0:00:05.8]} 33... Qxf2+ {[%clk 0:00:02.8]} 34. Bxf2 {[%clk 0:00:06.7]}
34... Rd2+ {[%clk 0:00:03]} 35. Kc1 {[%clk 0:00:07.4]} 35... Rxf2 {[%clk
0:00:03.9]} 36. Rxe7 {[%clk 0:00:07.9]} 36... Bh6+ {[%clk 0:00:04]} 37. Kd1
{[%clk 0:00:07.6]} 37... Rxa2 {[%clk 0:00:03.9]} 38. Re8+ {[%clk 0:00:07.3]}
38... Kg7 {[%clk 0:00:04]} 39. Rb8 {[%clk 0:00:08.2]} 39... Rd2+ {[%clk
0:00:04.4]} 40. Ke1 {[%clk 0:00:08.5]} 40... a3 {[%clk 0:00:04.8]} 41. Ra8
{[%clk 0:00:09.4]} 41... a2 {[%clk 0:00:04.9]} 42. Ra5 {[%clk 0:00:09.3]} 42...
Rb2 {[%clk 0:00:05.3]} 43. Kd1 {[%clk 0:00:08.1]} 43... Rb1+ {[%clk 0:00:05.4]}
44. Kc2 {[%clk 0:00:09]} 44... a1=Q {[%clk 0:00:06.1]} 45. Rxb5 {[%clk
0:00:08.9]} 45... Qa2+ {[%clk 0:00:06]} 46. Kd3 {[%clk 0:00:09.8]} 46... Rd1+
{[%clk 0:00:05.9]} 47. Ke4 {[%clk 0:00:10.1]} 47... Qe6+ {[%clk 0:00:06.3]} 48.
Kf3 {[%clk 0:00:10.1]} 48... Qg4+ {[%clk 0:00:06.1]} 49. Kf2 {[%clk 0:00:10.1]}
49... Rd2+ {[%clk 0:00:06.2]} 50. Ke1 {[%clk 0:00:10.5]} 50... Qe2# {[%clk
0:00:06.3]} 0-1

[Event "Late-Titled-Tuesday-Blitz-July-09-2024"]
[Site "Chess.com"]
[Date "2024.07.09"]
[Round "7"]
[White "ACollins05"]
[Black "klercaku"]
[Result "1-0"]
[WhiteElo "2490"]
[BlackElo "2377"]
[TimeControl "180+1"]
[EndTime "15:17:00 PDT"]
[Termination "ACollins05 won by resignation"]

1. d4 {[%clk 0:03:00.9]} 1... d5 {[%clk 0:03:00]} 2. c4 {[%clk 0:03:00.4]} 2...
e6 {[%clk 0:03:00.4]} 3. Nf3 {[%clk 0:03:00.8]} 3... Nf6 {[%clk 0:03:01]} 4. g3
{[%clk 0:03:00.4]} 4... Nbd7 {[%clk 0:03:01.6]} 5. Bg2 {[%clk 0:02:58.7]} 5...
dxc4 {[%clk 0:03:02.2]} 6. O-O {[%clk 0:02:58.4]} 6... c5 {[%clk 0:03:02.8]} 7.
Nbd2 {[%clk 0:02:51.5]} 7... cxd4 {[%clk 0:02:56.2]} 8. Nxc4 {[%clk 0:02:51.6]}
8... Bc5 {[%clk 0:02:54.7]} 9. Nxd4 {[%clk 0:02:50.6]} 9... O-O {[%clk
0:02:49.7]} 10. Nb5 {[%clk 0:02:49.3]} 10... Qe7 {[%clk 0:02:46.5]} 11. Be3
{[%clk 0:02:44.2]} 11... Bxe3 {[%clk 0:02:31.2]} 12. Nxe3 {[%clk 0:02:45.1]}
12... a6 {[%clk 0:02:26.3]} 13. Qd6 {[%clk 0:02:43.2]} 13... Qxd6 {[%clk
0:02:19.4]} 14. Nxd6 {[%clk 0:02:44.1]} 14... Rd8 {[%clk 0:02:01.6]} 15. Rfd1
{[%clk 0:02:33.8]} 15... Rb8 {[%clk 0:01:52.8]} 16. Rac1 {[%clk 0:02:31.8]}
16... b5 {[%clk 0:01:45.2]} 17. Nxc8 {[%clk 0:02:25.4]} 17... Rdxc8 {[%clk
0:01:44.8]} 18. Rxc8+ {[%clk 0:02:25.7]} 18... Rxc8 {[%clk 0:01:45.3]} 19. Bb7
{[%clk 0:02:25.9]} 19... Rb8 {[%clk 0:01:35.4]} 20. Bxa6 {[%clk 0:02:25.8]}
20... Kf8 {[%clk 0:01:26.8]} 21. Rc1 {[%clk 0:02:20.1]} 21... Ke7 {[%clk
0:01:16.4]} 22. b3 {[%clk 0:02:11.6]} 22... Rb6 {[%clk 0:01:11.4]} 23. Bc8
{[%clk 0:02:10.9]} 23... Nb8 {[%clk 0:01:02.5]} 24. a4 {[%clk 0:02:04.1]} 24...
bxa4 {[%clk 0:00:49.1]} 25. bxa4 {[%clk 0:02:05]} 25... Kd8 {[%clk 0:00:42.4]}
26. a5 {[%clk 0:02:03.1]} 26... Rc6 {[%clk 0:00:33.6]} 27. Rxc6 {[%clk
0:01:51.4]} 27... Nxc6 {[%clk 0:00:34.5]} 28. Ba6 {[%clk 0:01:50.5]} 28... Nxa5
{[%clk 0:00:34.3]} 29. Bd3 {[%clk 0:01:51.4]} 29... Nb3 {[%clk 0:00:31.4]} 30.
Kf1 {[%clk 0:01:48.4]} 30... Nc5 {[%clk 0:00:30.5]} 31. Bc2 {[%clk 0:01:48.2]}
31... Kc7 {[%clk 0:00:28.5]} 32. f3 {[%clk 0:01:48.8]} 32... Kc6 {[%clk
0:00:28]} 33. Kf2 {[%clk 0:01:49.7]} 33... Kb5 {[%clk 0:00:26.2]} 34. g4 {[%clk
0:01:50]} 34... h6 {[%clk 0:00:25.5]} 35. h4 {[%clk 0:01:50]} 35... Kc6 {[%clk
0:00:25.2]} 36. Ng2 {[%clk 0:01:49.5]} 36... Kd6 {[%clk 0:00:23.4]} 37. Nf4
{[%clk 0:01:46.7]} 37... e5 {[%clk 0:00:22]} 38. Ng2 {[%clk 0:01:45.4]} 38...
Nd5 {[%clk 0:00:21]} 39. Bb1 {[%clk 0:01:42.4]} 39... Nc3 {[%clk 0:00:20.4]} 40.
Bc2 {[%clk 0:01:37.9]} 40... Nd5 {[%clk 0:00:20.1]} 41. h5 {[%clk 0:01:36.1]}
41... Nb4 {[%clk 0:00:19.3]} 42. Bb1 {[%clk 0:01:35.6]} 42... Nd5 {[%clk
0:00:16.5]} 43. Nh4 {[%clk 0:01:35.1]} 43... Ne7 {[%clk 0:00:14.2]} 44. Ke3
{[%clk 0:01:33.6]} 44... Ne6 {[%clk 0:00:13.8]} 45. Ba2 {[%clk 0:01:31.9]} 45...
Ng5 {[%clk 0:00:12.8]} 46. Kf2 {[%clk 0:01:25.9]} 46... Kd7 {[%clk 0:00:10.4]}
47. Ke3 {[%clk 0:01:23.3]} 47... Kd6 {[%clk 0:00:10.2]} 48. Kd3 {[%clk 0:01:24]}
48... Nd5 {[%clk 0:00:07.4]} 49. Nf5+ {[%clk 0:01:22.3]} 49... Kc5 {[%clk
0:00:06.6]} 50. Bxd5 {[%clk 0:01:20.3]} 50... Kxd5 {[%clk 0:00:06.5]} 51. Nxg7
{[%clk 0:01:21.2]} 51... Ne6 {[%clk 0:00:04.5]} 52. Nf5 {[%clk 0:01:12.8]} 52...
Nf4+ {[%clk 0:00:04.3]} 53. Kd2 {[%clk 0:01:13.3]} 53... e4 {[%clk 0:00:02.9]}
54. Nxh6 {[%clk 0:01:12.6]} 54... Ne6 {[%clk 0:00:02]} 55. Nxf7 {[%clk
0:01:11.5]} 55... Nf8 {[%clk 0:00:01.4]} 56. g5 {[%clk 0:01:10]} 56... exf3
{[%clk 0:00:01.5]} 57. exf3 {[%clk 0:01:09.7]} 57... Ke6 {[%clk 0:00:02.2]} 58.
g6 {[%clk 0:01:06.6]} 58... Kf6 {[%clk 0:00:02.4]} 59. Ke3 {[%clk 0:01:03.8]}
59... Ne6 {[%clk 0:00:02.3]} 60. Nd6 {[%clk 0:00:58.6]} 60... Ng7 {[%clk
0:00:02.2]} 61. Ne4+ {[%clk 0:00:58.1]} 61... Kf5 {[%clk 0:00:01.8]} 62. h6
{[%clk 0:00:55.7]} 62... Kxg6 {[%clk 0:00:02]} 63. hxg7 {[%clk 0:00:55.6]} 63...
Kxg7 {[%clk 0:00:02.9]} 64. Kf4 {[%clk 0:00:55.3]} 64... Kf7 {[%clk 0:00:03.8]}
65. Kf5 {[%clk 0:00:55.5]} 65... Kg7 {[%clk 0:00:04.7]} 66. Ke6 {[%clk
0:00:54.7]} 66... Kg6 {[%clk 0:00:04.7]} 67. f4 {[%clk 0:00:54.7]} 67... Kg7
{[%clk 0:00:05.6]} 68. f5 {[%clk 0:00:53.8]} 68... Kf8 {[%clk 0:00:06.5]} 69. f6
{[%clk 0:00:52.8]} 69... Ke8 {[%clk 0:00:07.4]} 70. f7+ {[%clk 0:00:52.7]} 70...
Kf8 {[%clk 0:00:08.3]} 71. Nd2 {[%clk 0:00:51.5]} 71... Kg7 {[%clk 0:00:09.2]}
72. Ke7 {[%clk 0:00:51.2]} 72... Kh7 {[%clk 0:00:10.1]} 73. f8=Q {[%clk
0:00:50.5]} 73... Kg6 {[%clk 0:00:11]} 1-0

[Event "Late-Titled-Tuesday-Blitz-July-09-2024"]
[Site "Chess.com"]
[Date "2024.07.09"]
[Round "7"]
[White "HouseOfDurin"]
[Black "JavierRuizVazquez"]
[Result "1/2-1/2"]
[WhiteElo "2300"]
[BlackElo "2408"]
[TimeControl "180+1"]
[EndTime "15:17:04 PDT"]
[Termination "Game drawn by stalemate"]

1. d4 {[%clk 0:02:59.8]} 1... Nf6 {[%clk 0:02:59.5]} 2. Bg5 {[%clk 0:02:59.7]}
2... g6 {[%clk 0:03:00.4]} 3. Bxf6 {[%clk 0:02:59.7]} 3... exf6 {[%clk
0:03:01.3]} 4. c4 {[%clk 0:03:00.4]} 4... f5 {[%clk 0:02:56.8]} 5. Nc3 {[%clk
0:02:59.7]} 5... Bg7 {[%clk 0:02:57.3]} 6. g3 {[%clk 0:02:59.4]} 6... O-O {[%clk
0:02:53.9]} 7. e3 {[%clk 0:02:59.9]} 7... Re8 {[%clk 0:02:51.5]} 8. Nge2 {[%clk
0:02:59.1]} 8... d6 {[%clk 0:02:43.9]} 9. Bg2 {[%clk 0:02:58.7]} 9... c6 {[%clk
0:02:42.4]} 10. O-O {[%clk 0:02:58.3]} 10... h5 {[%clk 0:02:29.5]} 11. h4 {[%clk
0:02:56.8]} 11... Nd7 {[%clk 0:02:27.8]} 12. b4 {[%clk 0:02:55.9]} 12... Nf6
{[%clk 0:02:24.8]} 13. Qd3 {[%clk 0:02:54.2]} 13... Bd7 {[%clk 0:02:13.8]} 14.
a4 {[%clk 0:02:50.6]} 14... Ng4 {[%clk 0:02:11.1]} 15. b5 {[%clk 0:02:46.4]}
15... Bf6 {[%clk 0:02:03.6]} 16. Bf3 {[%clk 0:02:20.1]} 16... Bxh4 {[%clk
0:01:43.5]} 17. Bxg4 {[%clk 0:02:18.9]} 17... hxg4 {[%clk 0:01:44.4]} 18. gxh4
{[%clk 0:02:06.3]} 18... Qxh4 {[%clk 0:01:45.3]} 19. Nf4 {[%clk 0:01:40.8]}
19... Kg7 {[%clk 0:01:36.5]} 20. Kg2 {[%clk 0:01:34.9]} 20... Rh8 {[%clk
0:01:13.7]} 21. Rh1 {[%clk 0:01:34.6]} 21... Qg5 {[%clk 0:01:08.4]} 22. Rxh8
{[%clk 0:01:14.1]} 22... Rxh8 {[%clk 0:01:07.8]} 23. Rh1 {[%clk 0:01:14.8]}
23... Rxh1 {[%clk 0:00:59.1]} 24. Kxh1 {[%clk 0:01:15.7]} 24... Qh4+ {[%clk
0:00:59.2]} 25. Kg1 {[%clk 0:01:10.8]} 25... g5 {[%clk 0:00:57]} 26. Ng2 {[%clk
0:01:08.2]} 26... Qh3 {[%clk 0:00:56.8]} 27. d5 {[%clk 0:00:53.4]} 27... c5
{[%clk 0:00:53.9]} 28. Ne2 {[%clk 0:00:43.6]} 28... Qf3 {[%clk 0:00:32.7]} 29.
Ne1 {[%clk 0:00:20.6]} 29... Qh3 {[%clk 0:00:30.6]} 30. e4 {[%clk 0:00:19.3]}
30... Qh7 {[%clk 0:00:22.4]} 31. exf5 {[%clk 0:00:15.4]} 31... Bxf5 {[%clk
0:00:23.3]} 32. Qc3+ {[%clk 0:00:15.3]} 32... Kg8 {[%clk 0:00:20.8]} 33. Ng3
{[%clk 0:00:15.9]} 33... Qg6 {[%clk 0:00:12.2]} 34. Nxf5 {[%clk 0:00:15]} 34...
Qxf5 {[%clk 0:00:13.1]} 35. Ng2 {[%clk 0:00:14.4]} 35... Qb1+ {[%clk 0:00:12.3]}
36. Kh2 {[%clk 0:00:14.6]} 36... Qe4 {[%clk 0:00:08.7]} 37. Qf6 {[%clk
0:00:13.7]} 37... Qxc4 {[%clk 0:00:08.2]} 38. Qxg5+ {[%clk 0:00:13]} 38... Kh7
{[%clk 0:00:08.7]} 39. Nf4 {[%clk 0:00:11.6]} 39... Qe4 {[%clk 0:00:07]} 40.
Qh5+ {[%clk 0:00:08.8]} 40... Kg7 {[%clk 0:00:07.2]} 41. Qxg4+ {[%clk
0:00:08.9]} 41... Kf8 {[%clk 0:00:06.6]} 42. Ne6+ {[%clk 0:00:07]} 42... Qxe6
{[%clk 0:00:04.6]} 43. dxe6 {[%clk 0:00:06.6]} 43... Ke7 {[%clk 0:00:05.5]} 44.
exf7 {[%clk 0:00:06.6]} 44... Kxf7 {[%clk 0:00:06.4]} 45. Qf3+ {[%clk
0:00:06.6]} 45... Ke7 {[%clk 0:00:05.9]} 46. Qxb7+ {[%clk 0:00:07.5]} 46... Ke6
{[%clk 0:00:06.6]} 47. Qxa7 {[%clk 0:00:07.9]} 47... Ke5 {[%clk 0:00:06.9]} 48.
b6 {[%clk 0:00:08.3]} 48... Kd4 {[%clk 0:00:07.6]} 49. Qd7 {[%clk 0:00:08.6]}
49... d5 {[%clk 0:00:08.1]} 50. b7 {[%clk 0:00:09]} 50... c4 {[%clk 0:00:08.8]}
51. b8=Q {[%clk 0:00:09.5]} 51... c3 {[%clk 0:00:09.7]} 52. Qxd5+ {[%clk
0:00:09.4]} 52... Kxd5 {[%clk 0:00:09.7]} 53. Qc7 {[%clk 0:00:10.1]} 53... Kd4
{[%clk 0:00:10.3]} 54. a5 {[%clk 0:00:10.5]} 54... Kd3 {[%clk 0:00:10.2]} 55. a6
{[%clk 0:00:11.1]} 55... Kd2 {[%clk 0:00:10.5]} 56. a7 {[%clk 0:00:11.4]} 56...
Kc2 {[%clk 0:00:11.1]} 57. Qxc3+ {[%clk 0:00:11.4]} 57... Kb1 {[%clk 0:00:11.4]}
58. a8=Q {[%clk 0:00:12.3]} 1/2-1/2

[Event "Late-Titled-Tuesday-Blitz-July-09-2024"]
[Site "Chess.com"]
[Date "2024.07.09"]
[Round "7"]
[White "sari07"]
[Black "Ninocanina"]
[Result "0-1"]
[WhiteElo "2351"]
[BlackElo "1977"]
[TimeControl "180+1"]
[EndTime "15:17:09 PDT"]
[Termination "Ninocanina won on time"]

1. d4 {[%clk 0:03:00.9]} 1... d5 {[%clk 0:02:59.2]} 2. Nf3 {[%clk 0:03:01]} 2...
Nf6 {[%clk 0:02:58.7]} 3. g3 {[%clk 0:03:00.5]} 3... e6 {[%clk 0:02:59]} 4. Bg2
{[%clk 0:03:01]} 4... Be7 {[%clk 0:02:59.2]} 5. O-O {[%clk 0:03:01.5]} 5... O-O
{[%clk 0:02:59.3]} 6. b3 {[%clk 0:03:01.5]} 6... b6 {[%clk 0:02:57.7]} 7. Bb2
{[%clk 0:03:00.4]} 7... Bb7 {[%clk 0:02:57.7]} 8. c4 {[%clk 0:02:59.5]} 8... c5
{[%clk 0:02:54.7]} 9. Ne5 {[%clk 0:02:52.7]} 9... Nbd7 {[%clk 0:02:44.6]} 10.
Nc3 {[%clk 0:02:49.4]} 10... Rb8 {[%clk 0:02:37]} 11. cxd5 {[%clk 0:02:42.3]}
11... Nxd5 {[%clk 0:02:33.3]} 12. Nxd5 {[%clk 0:02:39.8]} 12... Bxd5 {[%clk
0:02:32.6]} 13. Bxd5 {[%clk 0:02:37.7]} 13... Nxe5 {[%clk 0:02:29.4]} 14. Bg2
{[%clk 0:02:33.8]} 14... cxd4 {[%clk 0:02:27.1]} 15. Qxd4 {[%clk 0:02:33.7]}
15... Bf6 {[%clk 0:02:24.8]} 16. Qxd8 {[%clk 0:01:55.3]} 16... Rfxd8 {[%clk
0:02:22.3]} 17. Rad1 {[%clk 0:01:48.1]} 17... Ng4 {[%clk 0:02:18.8]} 18. Bxf6
{[%clk 0:01:45.5]} 18... Nxf6 {[%clk 0:02:18.7]} 19. Bf3 {[%clk 0:01:19.3]}
19... Nd7 {[%clk 0:02:06.4]} 20. Kg2 {[%clk 0:01:07.5]} 20... Ne5 {[%clk
0:02:06]} 21. Be4 {[%clk 0:01:06.9]} 21... Nd7 {[%clk 0:01:58.4]} 22. b4 {[%clk
0:01:00]} 22... a5 {[%clk 0:01:51.2]} 23. Bc6 {[%clk 0:00:51.8]} 23... Ne5
{[%clk 0:01:46.6]} 24. b5 {[%clk 0:00:52.1]} 24... Kf8 {[%clk 0:01:42.2]} 25. f4
{[%clk 0:00:46.7]} 25... Nc4 {[%clk 0:01:40.2]} 26. Kf2 {[%clk 0:00:37.7]} 26...
Ke7 {[%clk 0:01:28.7]} 27. e4 {[%clk 0:00:37.5]} 27... Rxd1 {[%clk 0:01:23.1]}
28. Rxd1 {[%clk 0:00:37.3]} 28... Rd8 {[%clk 0:01:23.3]} 29. Rxd8 {[%clk
0:00:33.8]} 29... Kxd8 {[%clk 0:01:22.8]} 30. e5 {[%clk 0:00:31.3]} 30... Na3
{[%clk 0:01:15.8]} 31. Ke3 {[%clk 0:00:24.5]} 31... Nc2+ {[%clk 0:01:14.7]} 32.
Ke4 {[%clk 0:00:24.1]} 32... Nb4 {[%clk 0:01:13.3]} 33. g4 {[%clk 0:00:07.3]}
33... Nxa2 {[%clk 0:01:12.5]} 34. f5 {[%clk 0:00:06.9]} 34... Nb4 {[%clk
0:01:11.5]} 35. h4 {[%clk 0:00:06.1]} 35... Nxc6 {[%clk 0:01:10.7]} 36. bxc6
{[%clk 0:00:05.8]} 36... Kc7 {[%clk 0:01:11.1]} 37. h5 {[%clk 0:00:05.4]} 37...
Kxc6 {[%clk 0:01:09.4]} 38. g5 {[%clk 0:00:03.1]} 38... exf5+ {[%clk 0:01:04.4]}
39. Kxf5 {[%clk 0:00:04]} 39... a4 {[%clk 0:01:00.1]} 40. g6 {[%clk 0:00:04.3]}
40... fxg6+ {[%clk 0:00:58.9]} 41. hxg6 {[%clk 0:00:05.2]} 41... hxg6+ {[%clk
0:00:54.9]} 42. Kxg6 {[%clk 0:00:06.1]} 42... Kd7 {[%clk 0:00:53.4]} 43. Kf7
{[%clk 0:00:05.8]} 43... a3 {[%clk 0:00:48.7]} 44. e6+ {[%clk 0:00:06.7]} 44...
Kc7 {[%clk 0:00:47.3]} 45. e7 {[%clk 0:00:07.6]} 45... a2 {[%clk 0:00:47.1]} 46.
e8=Q {[%clk 0:00:08.5]} 46... a1=Q {[%clk 0:00:46.7]} 47. Qe7+ {[%clk
0:00:06.4]} 47... Kc6 {[%clk 0:00:45.9]} 48. Qe8+ {[%clk 0:00:06.4]} 48... Kc5
{[%clk 0:00:45.5]} 49. Qc8+ {[%clk 0:00:06.2]} 49... Kb4 {[%clk 0:00:44.7]} 50.
Qg4+ {[%clk 0:00:05.4]} 50... Kb5 {[%clk 0:00:41.5]} 51. Qg5+ {[%clk 0:00:04.5]}
51... Ka6 {[%clk 0:00:35.9]} 52. Qg2 {[%clk 0:00:04]} 52... Qf6+ {[%clk
0:00:33.1]} 53. Ke8 {[%clk 0:00:04.3]} 53... Qe6+ {[%clk 0:00:30.9]} 54. Kf8
{[%clk 0:00:04]} 54... Qf6+ {[%clk 0:00:27.6]} 55. Ke8 {[%clk 0:00:04]} 55...
Qe5+ {[%clk 0:00:22.5]} 56. Kd7 {[%clk 0:00:03.1]} 56... Qd4+ {[%clk 0:00:20.5]}
57. Kc8 {[%clk 0:00:01.9]} 57... Qc5+ {[%clk 0:00:20.4]} 58. Kb8 {[%clk
0:00:01.1]} 58... Qd6+ {[%clk 0:00:19.3]} 0-1

[Event "Late-Titled-Tuesday-Blitz-July-09-2024"]
[Site "Chess.com"]
[Date "2024.07.09"]
[Round "7"]
[White "Nf3c5"]
[Black "lluiss"]
[Result "1-0"]
[WhiteElo "2627"]
[BlackElo "2203"]
[TimeControl "180+1"]
[EndTime "15:17:11 PDT"]
[Termination "Nf3c5 won on time"]

1. e4 {[%clk 0:03:00.9]} 1... c5 {[%clk 0:02:59.3]} 2. Nc3 {[%clk 0:02:59.4]}
2... d6 {[%clk 0:02:59.6]} 3. d4 {[%clk 0:02:56]} 3... cxd4 {[%clk 0:02:58.1]}
4. Qxd4 {[%clk 0:02:56.9]} 4... Nc6 {[%clk 0:02:58.2]} 5. Qd2 {[%clk 0:02:57.1]}
5... Nf6 {[%clk 0:02:58.1]} 6. b3 {[%clk 0:02:56.1]} 6... e6 {[%clk 0:02:57.5]}
7. Bb2 {[%clk 0:02:56.1]} 7... d5 {[%clk 0:02:57.6]} 8. exd5 {[%clk 0:02:55.2]}
8... exd5 {[%clk 0:02:57.6]} 9. O-O-O {[%clk 0:02:48.5]} 9... Be6 {[%clk
0:02:57.2]} 10. Nf3 {[%clk 0:02:42.8]} 10... Bb4 {[%clk 0:02:53.4]} 11. a3
{[%clk 0:02:42.2]} 11... Ne4 {[%clk 0:02:49.4]} 12. Qe1 {[%clk 0:02:28.5]} 12...
Nxc3 {[%clk 0:02:44]} 13. Bxc3 {[%clk 0:02:28]} 13... Bxa3+ {[%clk 0:02:44]} 14.
Kb1 {[%clk 0:02:28.7]} 14... O-O {[%clk 0:02:42.3]} 15. Ne5 {[%clk 0:02:21]}
15... Re8 {[%clk 0:02:08]} 16. Bb5 {[%clk 0:02:11.7]} 16... Qb6 {[%clk 0:01:58]}
17. Ba4 {[%clk 0:01:44.7]} 17... Bd7 {[%clk 0:01:34]} 18. Nxd7 {[%clk
0:01:06.5]} 18... Rxe1 {[%clk 0:01:31.3]} 19. Nxb6 {[%clk 0:01:07.2]} 19... Rxh1
{[%clk 0:01:28.7]} 20. Rxh1 {[%clk 0:01:05.2]} 20... axb6 {[%clk 0:01:28.8]} 21.
Rd1 {[%clk 0:01:05.8]} 21... Rd8 {[%clk 0:01:19]} 22. Bb5 {[%clk 0:00:58.5]}
22... Bc5 {[%clk 0:01:18.8]} 23. f3 {[%clk 0:00:58.4]} 23... d4 {[%clk
0:01:18.7]} 24. Bb2 {[%clk 0:00:57.3]} 24... h6 {[%clk 0:01:13.6]} 25. h4 {[%clk
0:00:56.2]} 25... Re8 {[%clk 0:01:13.5]} 26. g4 {[%clk 0:00:54.3]} 26... Re3
{[%clk 0:01:11]} 27. Rf1 {[%clk 0:00:53.2]} 27... Ne5 {[%clk 0:01:09.4]} 28. b4
{[%clk 0:00:46.6]} 28... Bxb4 {[%clk 0:01:05.1]} 29. Bxd4 {[%clk 0:00:46.8]}
29... Bc5 {[%clk 0:00:40.1]} 30. Bxe3 {[%clk 0:00:37.1]} 30... Bxe3 {[%clk
0:00:40.2]} 31. Re1 {[%clk 0:00:32.7]} 31... Bf4 {[%clk 0:00:37]} 32. Re4 {[%clk
0:00:26.7]} 32... Bg3 {[%clk 0:00:36.8]} 33. h5 {[%clk 0:00:18.6]} 33... f6
{[%clk 0:00:32.6]} 34. Be2 {[%clk 0:00:16.5]} 34... Kf7 {[%clk 0:00:27]} 35. f4
{[%clk 0:00:17]} 35... Nc6 {[%clk 0:00:25.5]} 36. Bc4+ {[%clk 0:00:17.6]} 36...
Kf8 {[%clk 0:00:24.5]} 37. c3 {[%clk 0:00:18.1]} 37... Ne7 {[%clk 0:00:20.7]}
38. Be6 {[%clk 0:00:16]} 38... Bf2 {[%clk 0:00:18.6]} 39. Kc2 {[%clk 0:00:16.3]}
39... Bc5 {[%clk 0:00:18.5]} 40. Kb3 {[%clk 0:00:16.9]} 40... Nc6 {[%clk
0:00:18.6]} 41. Bd5 {[%clk 0:00:15.8]} 41... Na5+ {[%clk 0:00:16.3]} 42. Ka4
{[%clk 0:00:15.6]} 42... Bf2 {[%clk 0:00:14.1]} 43. Kb5 {[%clk 0:00:15.9]} 43...
Bc5 {[%clk 0:00:12.6]} 44. Re2 {[%clk 0:00:10.9]} 44... Bg1 {[%clk 0:00:10.6]}
45. Be4 {[%clk 0:00:10]} 45... Nc6 {[%clk 0:00:05.8]} 46. Bxc6 {[%clk
0:00:08.5]} 46... bxc6+ {[%clk 0:00:05.4]} 47. Kxc6 {[%clk 0:00:09.4]} 47... Bc5
{[%clk 0:00:05.3]} 48. Kd7 {[%clk 0:00:07.7]} 48... Kf7 {[%clk 0:00:04.6]} 49.
c4 {[%clk 0:00:05.8]} 49... Bb4 {[%clk 0:00:04.3]} 50. f5 {[%clk 0:00:05.9]}
50... Bc5 {[%clk 0:00:04.4]} 51. Re6 {[%clk 0:00:06.5]} 51... Bd4 {[%clk
0:00:03.8]} 52. Kc6 {[%clk 0:00:07.1]} 52... Bc5 {[%clk 0:00:03.6]} 53. Kb5
{[%clk 0:00:07.7]} 53... Be3 {[%clk 0:00:02.7]} 54. Rxb6 {[%clk 0:00:08.4]} 1-0